[Event "Titled Tuesday Blitz January 10 Early 2023"]
[White "Domingo Nunez, Ruben"]
[Black "Kvaloy, Aksel Bu"]
[WhiteFideId "22245570"]
[BlackFideId "1528815"]
[WhiteElo "2416"]
[BlackElo "2321"]
[Result "1-0"]
[Round "08"]
[TimeControl "180+2"]
[Date "2023.01.10"]
[WhiteClock "0:02:11"]
[BlackClock "0:01:26"]

1. e4 {[%clk 0:03:00]}  e5 {[%clk 0:02:55]} 2. Nf3 {[%clk 0:02:59]}  Nf6 {[%clk 0:02:56]} 3. Nxe5 {[%clk 0:02:59]}  Nc6 {[%clk 0:02:54]} 4. Nxc6 {[%clk 0:02:59]}  dxc6 {[%clk 0:02:55]} 5. Nc3 {[%clk 0:03:00]}  Bc5 {[%clk 0:02:55]} 6. h3 {[%clk 0:03:00]}  h5 {[%clk 0:02:52]} 7. d3 {[%clk 0:02:53]}  Be6 {[%clk 0:02:50]} 8. Be2 {[%clk 0:02:53]}  Qd6 {[%clk 0:02:43]} 9. Bg5 {[%clk 0:02:49]}  O-O-O {[%clk 0:02:42]} 10. Qd2 {[%clk 0:02:48]}  Bd4 {[%clk 0:02:39]} 11. Be3 {[%clk 0:02:47]}  c5 {[%clk 0:02:35]} 12. O-O-O {[%clk 0:02:43]}  Qa6 {[%clk 0:02:15]} 13. a3 {[%clk 0:02:42]}  Nd7 {[%clk 0:02:07]} 14. f4 {[%clk 0:02:34]}  f6 {[%clk 0:02:06]} 15. Bf3 {[%clk 0:02:28]}  Nb6 {[%clk 0:02:05]} 16. Ne2 {[%clk 0:02:25]}  Bxb2+ {[%clk 0:02:01]} 17. Kxb2 {[%clk 0:02:25]}  Nc4+ {[%clk 0:01:36]} 18. dxc4 {[%clk 0:02:26]}  Rxd2 {[%clk 0:01:37]} 19. Rxd2 {[%clk 0:02:21]}  Qxc4 {[%clk 0:01:36]} 20. Nc3 {[%clk 0:02:21]}  Rd8 {[%clk 0:01:27]} 21. Rxd8+ {[%clk 0:02:11]}  Kxd8 {[%clk 0:01:28]} 22. Rd1+ {[%clk 0:02:11]}  Ke7 {[%clk 0:01:26]} 23. Be2 {[%clk 0:02:11]} 1-0


[Site "https://www.chess.com"]

[Event "Titled Tuesday Blitz January 10 Early 2023"]
[White "Skvortsov, Andrei"]
[Black "Buksa, Nataliya"]
[WhiteFideId "24108600"]
[BlackFideId "14123622"]
[WhiteElo "2313"]
[BlackElo "2406"]
[Result "1-0"]
[Round "08"]
[TimeControl "180+2"]
[Date "2023.01.10"]
[WhiteClock "0:00:15"]
[BlackClock "0:00:47"]

1. e3 {[%clk 0:02:37]}  c5 {[%clk 0:02:58]} 2. d4 {[%clk 0:02:36]}  d5 {[%clk 0:02:55]} 3. Nf3 {[%clk 0:02:33]}  cxd4 {[%clk 0:02:52]} 4. exd4 {[%clk 0:02:30]}  Nf6 {[%clk 0:02:52]} 5. c4 {[%clk 0:02:25]}  Nc6 {[%clk 0:02:48]} 6. Nc3 {[%clk 0:02:20]}  Bg4 {[%clk 0:02:47]} 7. Be3 {[%clk 0:02:16]}  e6 {[%clk 0:02:46]} 8. h3 {[%clk 0:02:10]}  Bh5 {[%clk 0:02:46]} 9. Qb3 {[%clk 0:02:07]}  Qb6 {[%clk 0:02:36]} 10. c5 {[%clk 0:01:58]}  Qxb3 {[%clk 0:02:33]} 11. axb3 {[%clk 0:01:57]}  Bxf3 {[%clk 0:02:02]} 12. gxf3 {[%clk 0:01:57]}  e5 {[%clk 0:02:03]} 13. dxe5 {[%clk 0:01:56]}  Nxe5 {[%clk 0:02:04]} 14. O-O-O {[%clk 0:01:54]}  Rc8 {[%clk 0:02:00]} 15. b4 {[%clk 0:01:37]}  a5 {[%clk 0:01:57]} 16. Bb5+ {[%clk 0:01:34]}  Ned7 {[%clk 0:01:56]} 17. Nxd5 {[%clk 0:01:24]}  Rc6 {[%clk 0:01:47]} 18. Nxf6+ {[%clk 0:01:07]}  gxf6 {[%clk 0:01:42]} 19. Bxc6 {[%clk 0:01:01]}  bxc6 {[%clk 0:01:42]} 20. bxa5 {[%clk 0:00:58]}  Bxc5 {[%clk 0:01:42]} 21. Kc2 {[%clk 0:00:56]}  Bxe3 {[%clk 0:01:40]} 22. Rhe1 {[%clk 0:00:47]}  Ne5 {[%clk 0:01:38]} 23. Rxe3 {[%clk 0:00:47]}  O-O {[%clk 0:01:37]} 24. f4 {[%clk 0:00:46]}  Nc4 {[%clk 0:01:37]} 25. Rg3+ {[%clk 0:00:46]}  Kh8 {[%clk 0:01:37]} 26. b4 {[%clk 0:00:45]}  c5 {[%clk 0:01:27]} 27. Kc3 {[%clk 0:00:42]}  Na3 {[%clk 0:01:27]} 28. bxc5 {[%clk 0:00:39]}  Rb8 {[%clk 0:01:26]} 29. c6 {[%clk 0:00:34]}  h5 {[%clk 0:01:23]} 30. Re3 {[%clk 0:00:30]}  Rc8 {[%clk 0:01:16]} 31. Kb4 {[%clk 0:00:22]}  Nc2+ {[%clk 0:01:15]} 32. Kb5 {[%clk 0:00:22]}  Rb8+ {[%clk 0:01:13]} 33. Kc5 {[%clk 0:00:22]}  Nb4 {[%clk 0:00:59]} 34. c7 {[%clk 0:00:19]}  Na6+ {[%clk 0:00:59]} 35. Kd6 {[%clk 0:00:19]}  Rc8 {[%clk 0:00:57]} 36. Rc3 {[%clk 0:00:18]}  Nxc7 {[%clk 0:00:54]} 37. Rxc7 {[%clk 0:00:18]}  Ra8 {[%clk 0:00:55]} 38. Ke7 {[%clk 0:00:17]}  Kg7 {[%clk 0:00:53]} 39. Rg1+ {[%clk 0:00:17]}  Kh6 {[%clk 0:00:54]} 40. Kxf7 {[%clk 0:00:17]}  h4 {[%clk 0:00:54]} 41. Rc5 {[%clk 0:00:15]}  Ra6 {[%clk 0:00:48]} 42. Rg6+ {[%clk 0:00:14]}  Kh7 {[%clk 0:00:47]} 43. Rh5# {[%clk 0:00:15]} 1-0


[Site "https://www.chess.com"]

[Event "Titled Tuesday Blitz January 10 Early 2023"]
[White "Goltseva, Ekaterina"]
[Black "Sadubayev, Airat"]
[WhiteFideId "24173770"]
[BlackFideId "13713264"]
[WhiteElo "2283"]
[BlackElo "2320"]
[Result "0-1"]
[Round "08"]
[TimeControl "180+2"]
[Date "2023.01.10"]
[WhiteClock "0:00:03"]
[BlackClock "0:00:06"]

1. d4 {[%clk 0:03:00]}  d5 {[%clk 0:02:59]} 2. c4 {[%clk 0:02:59]}  c6 {[%clk 0:02:59]} 3. cxd5 {[%clk 0:02:59]}  cxd5 {[%clk 0:02:59]} 4. Bf4 {[%clk 0:03:00]}  Nc6 {[%clk 0:02:54]} 5. e3 {[%clk 0:03:00]}  Nf6 {[%clk 0:02:50]} 6. Nc3 {[%clk 0:02:58]}  Bf5 {[%clk 0:02:50]} 7. Qb3 {[%clk 0:02:54]}  Na5 {[%clk 0:02:50]} 8. Qa4+ {[%clk 0:02:54]}  Bd7 {[%clk 0:02:51]} 9. Qc2 {[%clk 0:02:54]}  e6 {[%clk 0:02:51]} 10. Bd3 {[%clk 0:02:55]}  Rc8 {[%clk 0:02:50]} 11. Nf3 {[%clk 0:02:55]}  Bb4 {[%clk 0:02:46]} 12. O-O {[%clk 0:02:48]}  O-O {[%clk 0:02:46]} 13. Rfc1 {[%clk 0:02:46]}  a6 {[%clk 0:02:44]} 14. Qd2 {[%clk 0:02:27]}  Bb5 {[%clk 0:02:39]} 15. Ne5 {[%clk 0:02:17]}  Bxd3 {[%clk 0:02:27]} 16. Qxd3 {[%clk 0:02:16]}  Nc4 {[%clk 0:02:20]} 17. Nxc4 {[%clk 0:01:46]}  Rxc4 {[%clk 0:02:19]} 18. Bg5 {[%clk 0:01:38]}  h6 {[%clk 0:02:14]} 19. Bh4 {[%clk 0:01:37]}  Qe7 {[%clk 0:01:56]} 20. a3 {[%clk 0:01:23]}  Bxc3 {[%clk 0:01:55]} 21. Rxc3 {[%clk 0:01:23]}  Rfc8 {[%clk 0:01:55]} 22. Rac1 {[%clk 0:01:22]}  b5 {[%clk 0:01:52]} 23. f3 {[%clk 0:01:15]}  Qc7 {[%clk 0:01:36]} 24. Be1 {[%clk 0:01:02]}  Qb7 {[%clk 0:01:29]} 25. b3 {[%clk 0:01:00]}  Rxc3 {[%clk 0:01:27]} 26. Rxc3 {[%clk 0:00:58]}  Rxc3 {[%clk 0:01:26]} 27. Qxc3 {[%clk 0:00:56]}  Kh7 {[%clk 0:01:20]} 28. Qc2+ {[%clk 0:00:55]}  Kg8 {[%clk 0:01:19]} 29. Qc5 {[%clk 0:00:46]}  Ne8 {[%clk 0:01:16]} 30. Ba5 {[%clk 0:00:44]}  Kh7 {[%clk 0:01:13]} 31. h3 {[%clk 0:00:38]}  Nf6 {[%clk 0:01:00]} 32. Bd8 {[%clk 0:00:34]}  Kg8 {[%clk 0:00:37]} 33. Bxf6 {[%clk 0:00:23]}  gxf6 {[%clk 0:00:38]} 34. Qd6 {[%clk 0:00:23]}  Qc8 {[%clk 0:00:35]} 35. Kh2 {[%clk 0:00:22]}  Kh7 {[%clk 0:00:31]} 36. b4 {[%clk 0:00:17]}  Kg7 {[%clk 0:00:27]} 37. Kg3 {[%clk 0:00:14]}  Kg6 {[%clk 0:00:20]} 38. Kh2 {[%clk 0:00:13]}  Kh7 {[%clk 0:00:19]} 39. e4 {[%clk 0:00:13]}  dxe4 {[%clk 0:00:16]} 40. fxe4 {[%clk 0:00:14]}  Kg7 {[%clk 0:00:16]} 41. d5 {[%clk 0:00:14]}  Qc4 {[%clk 0:00:13]} 42. Qg3+ {[%clk 0:00:11]}  Kh7 {[%clk 0:00:10]} 43. d6 {[%clk 0:00:09]}  Qd4 {[%clk 0:00:05]} 44. Qf4 {[%clk 0:00:06]}  Kg7 {[%clk 0:00:04]} 45. Qg3+ {[%clk 0:00:04]}  Kf8 {[%clk 0:00:04]} 46. Qf4 {[%clk 0:00:03]}  Ke8 {[%clk 0:00:05]} 47. Qxh6 {[%clk 0:00:03]}  Qxd6+ {[%clk 0:00:05]} 48. Kh1 {[%clk 0:00:02]}  Qd1+ {[%clk 0:00:05]} 49. Kh2 {[%clk 0:00:01]}  Qd6+ {[%clk 0:00:06]} 50. Kh1 {[%clk 0:00:02]}  Qe5 {[%clk 0:00:07]} 51. Qh4 {[%clk 0:00:02]}  Qa1+ {[%clk 0:00:06]} 52. Kh2 {[%clk 0:00:02]}  Qxa3 {[%clk 0:00:07]} 53. Qxf6 {[%clk 0:00:02]}  Qxb4 {[%clk 0:00:07]} 54. h4 {[%clk 0:00:03]}  Qe7 {[%clk 0:00:07]} 55. Qd4 {[%clk 0:00:02]}  Qxh4+ {[%clk 0:00:07]} 56. Kg1 {[%clk 0:00:02]}  Qe1+ {[%clk 0:00:07]} 57. Kh2 {[%clk 0:00:03]}  Qh4+ {[%clk 0:00:08]} 58. Kg1 {[%clk 0:00:03]}  Qg5 {[%clk 0:00:06]} 59. Qa7 {[%clk 0:00:03]}  Qc1+ {[%clk 0:00:06]} 60. Kh2 {[%clk 0:00:03]}  Qc6 {[%clk 0:00:07]} 61. Qb8+ {[%clk 0:00:02]}  Ke7 {[%clk 0:00:07]} 62. e5 {[%clk 0:00:03]}  Qd7 {[%clk 0:00:06]} 63. Qa7 {[%clk 0:00:03]}  Qxa7 {[%clk 0:00:06]} 0-1


[Site "https://www.chess.com"]

[Event "Titled Tuesday Blitz January 10 Early 2023"]
[White "Liyanage, Ranindu Dilshan"]
[Black "surrenderPLS"]
[WhiteFideId "9915834"]
[WhiteElo "2342"]
[BlackElo "2533"]
[Result "0-1"]
[Round "08"]
[TimeControl "180+2"]
[Date "2023.01.10"]
[WhiteClock "0:00:22"]
[BlackClock "0:00:13"]

1. e4 {[%clk 0:02:58]}  c5 {[%clk 0:02:59]} 2. Nc3 {[%clk 0:02:58]}  d6 {[%clk 0:02:58]} 3. f4 {[%clk 0:02:57]}  g6 {[%clk 0:02:58]} 4. Nf3 {[%clk 0:02:57]}  Bg7 {[%clk 0:02:58]} 5. Bb5+ {[%clk 0:02:57]}  Bd7 {[%clk 0:02:58]} 6. Bc4 {[%clk 0:02:57]}  Nc6 {[%clk 0:02:58]} 7. d3 {[%clk 0:02:56]}  e6 {[%clk 0:02:49]} 8. f5 {[%clk 0:02:56]}  exf5 {[%clk 0:02:48]} 9. exf5 {[%clk 0:02:57]}  Bxf5 {[%clk 0:02:48]} 10. O-O {[%clk 0:02:53]}  Nge7 {[%clk 0:02:47]} 11. Bg5 {[%clk 0:02:46]}  h6 {[%clk 0:02:44]} 12. Bf4 {[%clk 0:02:31]}  Qd7 {[%clk 0:02:39]} 13. Re1 {[%clk 0:02:21]}  O-O {[%clk 0:02:31]} 14. Qd2 {[%clk 0:02:16]}  Kh7 {[%clk 0:02:28]} 15. Rab1 {[%clk 0:01:55]}  a6 {[%clk 0:02:24]} 16. Bd5 {[%clk 0:01:42]}  Bxc3 {[%clk 0:02:18]} 17. bxc3 {[%clk 0:01:24]}  Nxd5 {[%clk 0:02:15]} 18. Bxh6 {[%clk 0:01:24]}  Rfe8 {[%clk 0:02:14]} 19. c4 {[%clk 0:01:18]}  Nf6 {[%clk 0:02:02]} 20. Bg5 {[%clk 0:01:15]}  Ng4 {[%clk 0:01:56]} 21. Qf4 {[%clk 0:01:10]}  f6 {[%clk 0:01:47]} 22. h3 {[%clk 0:01:09]}  fxg5 {[%clk 0:01:36]} 23. Nxg5+ {[%clk 0:01:10]}  Kg8 {[%clk 0:01:36]} 24. hxg4 {[%clk 0:01:06]}  Bxg4 {[%clk 0:01:36]} 25. Qf6 {[%clk 0:01:06]}  Qg7 {[%clk 0:01:29]} 26. Qxd6 {[%clk 0:00:51]}  Rxe1+ {[%clk 0:01:18]} 27. Rxe1 {[%clk 0:00:50]}  Qd4+ {[%clk 0:01:18]} 28. Qxd4 {[%clk 0:00:50]}  cxd4 {[%clk 0:01:12]} 29. Ne4 {[%clk 0:00:50]}  Kg7 {[%clk 0:01:04]} 30. Nd6 {[%clk 0:00:50]}  b6 {[%clk 0:00:55]} 31. Rb1 {[%clk 0:00:50]}  Rd8 {[%clk 0:00:50]} 32. Ne4 {[%clk 0:00:50]}  Rb8 {[%clk 0:00:49]} 33. a4 {[%clk 0:00:49]}  a5 {[%clk 0:00:49]} 34. Nd6 {[%clk 0:00:47]}  Nb4 {[%clk 0:00:47]} 35. Rb2 {[%clk 0:00:45]}  Rd8 {[%clk 0:00:43]} 36. Ne4 {[%clk 0:00:42]}  Bd1 {[%clk 0:00:38]} 37. Ng5 {[%clk 0:00:35]}  Re8 {[%clk 0:00:34]} 38. Rb1 {[%clk 0:00:30]}  Bxc2 {[%clk 0:00:34]} 39. Rf1 {[%clk 0:00:31]}  Re7 {[%clk 0:00:31]} 40. Nf3 {[%clk 0:00:31]}  Bxd3 {[%clk 0:00:31]} 41. Rd1 {[%clk 0:00:31]}  Be2 {[%clk 0:00:28]} 42. Rxd4 {[%clk 0:00:31]}  Bxf3 {[%clk 0:00:27]} 43. gxf3 {[%clk 0:00:32]}  Re3 {[%clk 0:00:24]} 44. Kf2 {[%clk 0:00:29]}  Ra3 {[%clk 0:00:24]} 45. Rd6 {[%clk 0:00:29]}  Nd3+ {[%clk 0:00:19]} 46. Kg3 {[%clk 0:00:26]}  Ne5 {[%clk 0:00:18]} 47. Rxb6 {[%clk 0:00:23]}  Rxf3+ {[%clk 0:00:18]} 48. Kg2 {[%clk 0:00:22]}  Ra3 {[%clk 0:00:18]} 49. c5 {[%clk 0:00:21]}  Rxa4 {[%clk 0:00:18]} 50. Re6 {[%clk 0:00:22]}  Nd3 {[%clk 0:00:13]} 51. c6 {[%clk 0:00:22]}  Nf4+ {[%clk 0:00:13]} 0-1


[Site "https://www.chess.com"]

[Event "Titled Tuesday Blitz January 10 Early 2023"]
[White "Mirzoev, Azer"]
[Black "Pein, Jonathan"]
[WhiteFideId "13400304"]
[BlackFideId "417092"]
[WhiteElo "2416"]
[BlackElo "2265"]
[Result "1-0"]
[Round "08"]
[TimeControl "180+2"]
[Date "2023.01.10"]
[WhiteClock "0:00:08"]
[BlackClock "0:00:02"]

1. c4 {[%clk 0:02:58]}  g6 {[%clk 0:02:55]} 2. Nc3 {[%clk 0:02:58]}  Bg7 {[%clk 0:02:56]} 3. Nf3 {[%clk 0:02:58]}  e5 {[%clk 0:02:56]} 4. g3 {[%clk 0:02:58]}  Ne7 {[%clk 0:02:56]} 5. Bg2 {[%clk 0:02:58]}  O-O {[%clk 0:02:56]} 6. d4 {[%clk 0:02:58]}  exd4 {[%clk 0:02:55]} 7. Nxd4 {[%clk 0:02:58]}  Nbc6 {[%clk 0:02:56]} 8. Nc2 {[%clk 0:02:58]}  d6 {[%clk 0:02:54]} 9. h4 {[%clk 0:02:53]}  Be6 {[%clk 0:02:54]} 10. Ne3 {[%clk 0:02:52]}  Ne5 {[%clk 0:02:51]} 11. Bxb7 {[%clk 0:02:47]}  Nxc4 {[%clk 0:02:46]} 12. Nxc4 {[%clk 0:02:45]}  Bxc4 {[%clk 0:02:47]} 13. h5 {[%clk 0:02:45]}  Rb8 {[%clk 0:02:43]} 14. Bf3 {[%clk 0:02:45]}  Nf5 {[%clk 0:02:41]} 15. hxg6 {[%clk 0:02:43]}  hxg6 {[%clk 0:02:42]} 16. O-O {[%clk 0:02:09]}  Qd7 {[%clk 0:02:03]} 17. Bd5 {[%clk 0:01:58]}  Ba6 {[%clk 0:01:39]} 18. Re1 {[%clk 0:01:49]}  Rfe8 {[%clk 0:01:37]} 19. e3 {[%clk 0:01:40]}  Be5 {[%clk 0:01:21]} 20. Bg2 {[%clk 0:01:34]}  Bb7 {[%clk 0:01:13]} 21. Nd5 {[%clk 0:01:32]}  c6 {[%clk 0:01:10]} 22. Nf4 {[%clk 0:01:30]}  Kg7 {[%clk 0:00:54]} 23. Bd2 {[%clk 0:01:22]}  Bxb2 {[%clk 0:00:49]} 24. Rb1 {[%clk 0:01:21]}  Be5 {[%clk 0:00:49]} 25. Qa4 {[%clk 0:01:20]}  Ba8 {[%clk 0:00:44]} 26. Rec1 {[%clk 0:01:15]}  d5 {[%clk 0:00:33]} 27. Rxb8 {[%clk 0:01:04]}  Rxb8 {[%clk 0:00:34]} 28. Nxd5 {[%clk 0:01:03]}  Rd8 {[%clk 0:00:31]} 29. Bc3 {[%clk 0:01:01]}  Bxc3 {[%clk 0:00:21]} 30. Nxc3 {[%clk 0:01:01]}  Qd2 {[%clk 0:00:21]} 31. Qc2 {[%clk 0:00:59]}  Qd6 {[%clk 0:00:18]} 32. Ne4 {[%clk 0:00:57]}  Qe5 {[%clk 0:00:18]} 33. a4 {[%clk 0:00:52]}  c5 {[%clk 0:00:16]} 34. Qxc5 {[%clk 0:00:50]}  Rd1+ {[%clk 0:00:16]} 35. Kh2 {[%clk 0:00:48]}  Rd5 {[%clk 0:00:12]} 36. Qc3 {[%clk 0:00:46]}  Qxc3 {[%clk 0:00:11]} 37. Nxc3 {[%clk 0:00:45]}  Rd8 {[%clk 0:00:10]} 38. Bxa8 {[%clk 0:00:45]}  Rxa8 {[%clk 0:00:11]} 39. Kg2 {[%clk 0:00:37]}  Rb8 {[%clk 0:00:08]} 40. g4 {[%clk 0:00:31]}  Nd6 {[%clk 0:00:08]} 41. Rd1 {[%clk 0:00:27]}  Nc4 {[%clk 0:00:05]} 42. Rd4 {[%clk 0:00:25]}  Ne5 {[%clk 0:00:05]} 43. Kg3 {[%clk 0:00:25]}  Rb3 {[%clk 0:00:05]} 44. Ne4 {[%clk 0:00:21]}  a5 {[%clk 0:00:03]} 45. g5 {[%clk 0:00:18]}  Rb4 {[%clk 0:00:02]} 46. Nc5 {[%clk 0:00:13]}  Nc6 {[%clk 0:00:01]} 47. Rxb4 {[%clk 0:00:12]}  axb4 {[%clk 0:00:02]} 48. Kf4 {[%clk 0:00:10]}  Na5 {[%clk 0:00:02]} 49. Nd3 {[%clk 0:00:09]}  b3 {[%clk 0:00:02]} 50. Nb2 {[%clk 0:00:08]} 1-0


[Site "https://www.chess.com"]

[Event "Titled Tuesday Blitz January 10 Early 2023"]
[White "Sokolovsky, Yahli"]
[Black "Vagman, Roy"]
[WhiteFideId "2820242"]
[BlackFideId "2828995"]
[WhiteElo "2461"]
[BlackElo "2273"]
[Result "1-0"]
[Round "08"]
[TimeControl "180+2"]
[Date "2023.01.10"]
[WhiteClock "0:00:14"]
[BlackClock "0:00:01"]

1. b3 {[%clk 0:03:00]}  c5 {[%clk 0:02:56]} 2. Bb2 {[%clk 0:03:01]}  Nc6 {[%clk 0:02:53]} 3. e3 {[%clk 0:03:01]}  a6 {[%clk 0:02:52]} 4. d4 {[%clk 0:03:02]}  cxd4 {[%clk 0:02:51]} 5. exd4 {[%clk 0:03:02]}  d5 {[%clk 0:02:52]} 6. Nf3 {[%clk 0:03:02]}  Nf6 {[%clk 0:02:52]} 7. a3 {[%clk 0:03:03]}  Bg4 {[%clk 0:02:50]} 8. Bd3 {[%clk 0:03:03]}  e6 {[%clk 0:02:49]} 9. Nbd2 {[%clk 0:03:04]}  Bd6 {[%clk 0:02:48]} 10. O-O {[%clk 0:03:04]}  O-O {[%clk 0:02:44]} 11. h3 {[%clk 0:03:05]}  Bh5 {[%clk 0:02:43]} 12. Qe1 {[%clk 0:03:05]}  Rc8 {[%clk 0:02:39]} 13. Qe3 {[%clk 0:02:59]}  Qc7 {[%clk 0:02:29]} 14. Ne5 {[%clk 0:02:51]}  Nd7 {[%clk 0:02:19]} 15. f4 {[%clk 0:02:47]}  f6 {[%clk 0:01:38]} 16. Nxc6 {[%clk 0:02:44]}  Qxc6 {[%clk 0:01:29]} 17. Qxe6+ {[%clk 0:02:44]}  Bf7 {[%clk 0:01:29]} 18. Qe3 {[%clk 0:02:39]}  Rce8 {[%clk 0:01:28]} 19. Qf3 {[%clk 0:02:37]}  Kh8 {[%clk 0:01:19]} 20. Rae1 {[%clk 0:02:36]}  Qc7 {[%clk 0:01:18]} 21. g3 {[%clk 0:02:35]}  b5 {[%clk 0:01:16]} 22. Qf2 {[%clk 0:02:22]}  b4 {[%clk 0:01:16]} 23. axb4 {[%clk 0:02:03]}  Bxb4 {[%clk 0:01:17]} 24. Rxe8 {[%clk 0:02:03]}  Rxe8 {[%clk 0:01:16]} 25. Re1 {[%clk 0:02:03]}  Rg8 {[%clk 0:01:03]} 26. c3 {[%clk 0:01:55]}  Bd6 {[%clk 0:00:46]} 27. Bxa6 {[%clk 0:01:55]}  g5 {[%clk 0:00:43]} 28. Bd3 {[%clk 0:01:45]}  gxf4 {[%clk 0:00:41]} 29. g4 {[%clk 0:01:46]}  Nf8 {[%clk 0:00:31]} 30. Qh4 {[%clk 0:01:40]}  Kg7 {[%clk 0:00:25]} 31. Nf3 {[%clk 0:01:06]}  Ng6 {[%clk 0:00:22]} 32. Qf2 {[%clk 0:00:55]}  Ra8 {[%clk 0:00:20]} 33. Ra1 {[%clk 0:00:50]}  Re8 {[%clk 0:00:17]} 34. Re1 {[%clk 0:00:49]}  Ra8 {[%clk 0:00:18]} 35. Bb1 {[%clk 0:00:48]}  Qb6 {[%clk 0:00:15]} 36. Qc2 {[%clk 0:00:46]}  Rb8 {[%clk 0:00:14]} 37. b4 {[%clk 0:00:47]}  Qc7 {[%clk 0:00:13]} 38. h4 {[%clk 0:00:46]}  Qd7 {[%clk 0:00:09]} 39. Qg2 {[%clk 0:00:42]}  Kh8 {[%clk 0:00:07]} 40. h5 {[%clk 0:00:36]}  Nf8 {[%clk 0:00:06]} 41. Nh4 {[%clk 0:00:35]}  Be6 {[%clk 0:00:06]} 42. Nf5 {[%clk 0:00:33]}  Bc7 {[%clk 0:00:07]} 43. Qf2 {[%clk 0:00:27]}  Re8 {[%clk 0:00:07]} 44. Qh4 {[%clk 0:00:27]}  Bd8 {[%clk 0:00:05]} 45. Bc1 {[%clk 0:00:23]}  Bxf5 {[%clk 0:00:05]} 46. Bxf5 {[%clk 0:00:21]}  Qf7 {[%clk 0:00:05]} 47. Bxf4 {[%clk 0:00:19]}  Rxe1+ {[%clk 0:00:02]} 48. Qxe1 {[%clk 0:00:19]}  Be7 {[%clk 0:00:02]} 49. b5 {[%clk 0:00:17]}  Qe8 {[%clk 0:00:03]} 50. b6 {[%clk 0:00:16]}  Qd8 {[%clk 0:00:03]} 51. b7 {[%clk 0:00:16]}  Bd6 {[%clk 0:00:03]} 52. Qg3 {[%clk 0:00:14]}  Bxf4 {[%clk 0:00:03]} 53. Qxf4 {[%clk 0:00:15]}  Qb6 {[%clk 0:00:04]} 54. b8=Q {[%clk 0:00:15]}  Qa6 {[%clk 0:00:01]} 55. Qxf8# {[%clk 0:00:14]} 1-0


[Site "https://www.chess.com"]

[Event "Titled Tuesday Blitz January 10 Early 2023"]
[White "Szpar, Milosz"]
[Black "Flynn, Jacob"]
[WhiteFideId "1184989"]
[BlackFideId "2509393"]
[WhiteElo "2447"]
[BlackElo "2102"]
[Result "0-1"]
[Round "08"]
[TimeControl "180+2"]
[Date "2023.01.10"]
[WhiteClock "0:00:13"]
[BlackClock "0:00:50"]

1. e4 {[%clk 0:02:26]}  e5 {[%clk 0:03:00]} 2. Nf3 {[%clk 0:02:26]}  Nc6 {[%clk 0:03:00]} 3. Bb5 {[%clk 0:02:24]}  a6 {[%clk 0:03:00]} 4. Ba4 {[%clk 0:02:24]}  Nf6 {[%clk 0:03:01]} 5. O-O {[%clk 0:02:23]}  Be7 {[%clk 0:03:01]} 6. d3 {[%clk 0:02:21]}  b5 {[%clk 0:03:01]} 7. Bb3 {[%clk 0:02:21]}  d6 {[%clk 0:03:02]} 8. a3 {[%clk 0:02:20]}  O-O {[%clk 0:03:02]} 9. Nc3 {[%clk 0:02:20]}  Na5 {[%clk 0:02:57]} 10. Ba2 {[%clk 0:02:12]}  Be6 {[%clk 0:02:57]} 11. Nd5 {[%clk 0:02:09]}  c5 {[%clk 0:02:39]} 12. b4 {[%clk 0:02:08]}  Nc6 {[%clk 0:02:39]} 13. c3 {[%clk 0:02:06]}  h6 {[%clk 0:02:25]} 14. h3 {[%clk 0:02:04]}  a5 {[%clk 0:02:23]} 15. bxc5 {[%clk 0:02:03]}  dxc5 {[%clk 0:02:22]} 16. c4 {[%clk 0:02:00]}  b4 {[%clk 0:02:21]} 17. a4 {[%clk 0:01:58]}  Ne8 {[%clk 0:02:16]} 18. Be3 {[%clk 0:01:57]}  Nc7 {[%clk 0:02:09]} 19. Qd2 {[%clk 0:01:53]}  Rb8 {[%clk 0:02:05]} 20. Bb3 {[%clk 0:01:53]}  Qd7 {[%clk 0:02:04]} 21. Nh2 {[%clk 0:01:52]}  Nd4 {[%clk 0:01:53]} 22. Bxd4 {[%clk 0:01:52]}  cxd4 {[%clk 0:01:52]} 23. f4 {[%clk 0:01:52]}  f6 {[%clk 0:01:51]} 24. Nf3 {[%clk 0:01:46]}  Bxd5 {[%clk 0:01:45]} 25. cxd5 {[%clk 0:01:46]}  Bd6 {[%clk 0:01:45]} 26. Rac1 {[%clk 0:01:40]}  Na6 {[%clk 0:01:45]} 27. Bc4 {[%clk 0:00:49]}  Nc5 {[%clk 0:01:41]} 28. Bb5 {[%clk 0:00:49]}  Rxb5 {[%clk 0:01:39]} 29. axb5 {[%clk 0:00:49]}  Qxb5 {[%clk 0:01:40]} 30. fxe5 {[%clk 0:00:48]}  fxe5 {[%clk 0:01:40]} 31. Nh4 {[%clk 0:00:48]}  Nb3 {[%clk 0:01:35]} 32. Rxf8+ {[%clk 0:00:41]}  Bxf8 {[%clk 0:01:36]} 33. Qf2 {[%clk 0:00:41]}  Nxc1 {[%clk 0:01:34]} 34. Ng6 {[%clk 0:00:41]}  Qe8 {[%clk 0:01:31]} 35. Qf5 {[%clk 0:00:38]}  Nxd3 {[%clk 0:01:24]} 36. Kh2 {[%clk 0:00:26]}  Nf4 {[%clk 0:01:24]} 37. Nxe5 {[%clk 0:00:23]}  Nh5 {[%clk 0:01:15]} 38. Ng6 {[%clk 0:00:20]}  Nf6 {[%clk 0:01:10]} 39. e5 {[%clk 0:00:14]}  Nxd5 {[%clk 0:01:07]} 40. e6 {[%clk 0:00:14]}  Bd6+ {[%clk 0:01:05]} 41. g3 {[%clk 0:00:14]}  Nf6 {[%clk 0:01:04]} 42. Kg1 {[%clk 0:00:12]}  b3 {[%clk 0:00:58]} 43. e7 {[%clk 0:00:12]}  Bxe7 {[%clk 0:00:55]} 44. Qe6+ {[%clk 0:00:12]}  Kh7 {[%clk 0:00:52]} 45. Nxe7 {[%clk 0:00:12]}  b2 {[%clk 0:00:50]} 46. Qf5+ {[%clk 0:00:12]}  g6 {[%clk 0:00:49]} 47. Qxf6 {[%clk 0:00:11]}  b1=Q+ {[%clk 0:00:50]} 48. Kh2 {[%clk 0:00:12]}  Qc2+ {[%clk 0:00:49]} 49. Kg1 {[%clk 0:00:12]}  Qd1+ {[%clk 0:00:49]} 50. Kh2 {[%clk 0:00:13]}  Qe2+ {[%clk 0:00:49]} 51. Kg1 {[%clk 0:00:13]}  Q2xe7 {[%clk 0:00:50]} 0-1


[Site "https://www.chess.com"]